{"text_format":"3","workbook":"xlsx","n_sheets":4,"sheets":["cover","species count","Sheet1","Sheet2"],"not_rendered":{"images":3,"pivot_tables":1},"read":"whole","date_system":"1904"}

{"sheet":"cover","index":0,"n_rows":41,"n_cols":10,"rows_kept":41,"merged":[[1,0,1,2],[2,0,6,1],[3,8,3,9],[4,2,4,7],[4,8,4,9],[6,2,6,7],[9,0,9,2],[9,6,9,9],[10,0,10,1],[10,2,10,3],[11,1,11,3],[11,5,11,9],[12,1,13,3],[12,5,12,8],[13,5,13,7],[13,8,13,9],[14,1,14,3],[14,5,14,6],[14,7,14,9],[15,1,15,3],[15,5,15,7],[15,8,15,9],[16,1,16,3],[16,6,16,9],[17,0,18,0],[17,1,18,3],[17,6,17,9],[18,8,18,9],[19,0,19,9],[20,0,20,9],[21,0,21,2],[21,5,21,7],[21,8,21,9],[22,0,22,3],[22,5,22,7],[23,0,23,2],[23,5,23,7],[23,8,23,9],[24,0,24,3],[24,5,24,9],[25,0,25,2],[25,5,25,7],[25,8,25,9],[26,0,26,3],[27,0,27,2],[27,6,27,9],[28,0,28,3],[28,5,28,9],[29,0,29,2],[29,5,29,9],[30,0,30,2],[30,5,30,8],[31,0,31,3],[31,5,31,9],[32,0,32,2],[32,5,32,7],[32,8,32,9],[33,0,33,3],[33,5,33,9],[34,0,34,9],[35,1,36,9],[38,0,38,9]]}
[]
[]
["P O Box RVL100, Runiville,                           Harare, Zimbabwe       www.birdlifezimbabwe.org               : Birdlife Zimbabwe",null,"AFRICAN WATERBIRD CENSUS (AfWC)"]
[{"$nulls":8},"Headquarters:"]
[null,null,"Southern Africa",{"$nulls":5},"The Netherlands"]
[]
[null,null,"ZIMBABWE"]
[]
["NB. PLEASE USE A NEW FORM FOR EACH SITE ",{"$nulls":8},"(Use TAB key to move between fields)"]
["DATE OF COUNT (dd/mm/yy):",{"$nulls":4},"SITE NAME:"]
["TIMES OF COUNT:",{"$nulls":4}," (if applicable) PARENT SITE:"]
["COMPILER:"]
["ADDRESS:",{"$nulls":4},"  SITE COUNTED BEFORE (Y/N):"]
[{"$nulls":5},"SITE CODE: (Official use)"]
["LAND LINE:",{"$nulls":4},"SITE COORDINATES:"]
["CELL No.:",{"$nulls":4}," G=GPS/P=Pentad/Q=QDS:"]
["EMAIL:",{"$nulls":4},"DISTRICT:"]
["OTHER PAR-TICIPANTS:",{"$nulls":4},"PROVINCE:"]
[{"$nulls":5},"NEAREST LARGE TOWN:"]
["(For the following questions, combinations of options, where relevant, are allowed)"]
["IMPORTANT: Please ensure all Highlighted fields are filled in"]
["COUNTING METHOD:",{"$nulls":4},"VISIBILITY:"]
[" A=aerial  B=boat  F=foot  V=vehicle  T=telescope",{"$nulls":4},"P=Poor  F=Fair  E=Excellent"]
["TYPE OF WETLAND:",{"$nulls":4},"VEGETATION ON DAM & SHORELINE:"]
["A=rivers, streams, canals  B=freshwater marshes, flooded areas, vleis  C=freshwater lake/dam  D=gravel pit, mineral working  E=fishponds/golf courses  F=grassland, arable land  G=freshwater swamp forest",{"$nulls":4},"G=Grasses/sedges  P=Phragmites/reeds  Q=Potamogeton/pond weed  W=Waterlilies  T=Typha/bulrushes  L=Ludwigia/water primrose  H=Hyacinth  or other (specify) "]
["CONDITION OF WETLAND:",{"$nulls":4},"WATER STATUS:"]
["W=wet  D=dry  O=flooded  P=polluted M=modified U=unknown",{"$nulls":4},"U=Unknown N=Normal (wet) D=Dry O=Overflooded "]
["COVERAGE OF WETLAND:",{"$nulls":4},"WEATHER:"]
["B(ad)=<25%; M(oderate)=25-50%; G(ood)=51-75%; E(xcellent)=76-100%    (If less than 100%, indicate area covered on accompanying map) ",{"$nulls":4},"Very hot/Hot/Warm/Cool/Cold   Dry/Light rain/Heavy rain   Strong Wind/Gusty/Light Wind   Overcast/Partly cloudy/Clear  "]
["EFFECTS OF WEATHER (wind, rain, fog) ON COUNT:",{"$nulls":4},"U= Unknown N= No effect L= Little effect M= Moderate effect S= Strong effect "]
["DISTURBANCE OF SITE:",{"$nulls":4},"COUNT AFFECTED BY DISTURBANCE:"]
["L=Low-flying aircraft  M=motor boats  F=fishing  H=hunting  P=Human  T=trapping  or other (specify) ",{"$nulls":4},"N=none  L=little  M=moderate  S=strong  U=unknown"]
["SITE STATUS: ",{"$nulls":4},"TYPE OF COUNT:"]
["N=National Park  M=Nature Reserve  P=Private  I=IBA  R=Ramsar  U=Unknown  or other (Specify)",{"$nulls":4},"T = Total  S = Sample"]
["If site warrants it, a count of approximately 3-4 hours or 5km of shoreline could be done for uniformity"]
["COMMENTS:"]
[]
[]
["If coverage of wetland is less than 100% please draw/print outline map of area covered by count overleaf, with important geographical features(rivers, hills, roads).   "]
[]
["Insert an image here"]

{"sheet":"species count","index":1,"n_rows":123,"n_cols":18,"rows_kept":123,"merged":[[120,0,120,15]]}
[1,{"$f":"SUM(B2:B3,K2)","v":0},"GREBES",{"$nulls":5},"Note",{"$nulls":8},"Note"]
["TACRU",null,"Little Grebe Tachybaptus ruficollis",{"$nulls":6},"PODCR",null,"Great Crested Grebe Podiceps cristatus"]
["PODNI",null,"Black-necked Grebe Podiceps nigricollis"]
[]
["Total",{"$f":"SUM(B6,K5:K6)","v":0},"PELICANS",{"$nulls":6},"PELEC",null,"unidentified pelicans - Pelecanus spp."]
["PELON",null,"Great White Pelican Pelecanus onocrotalus",{"$nulls":6},"PELRU",null,"Pink-backed Pelican Pelecanus rufescens"]
[]
["Total",{"$f":"SUM(B9,K8:K9)","v":0},"CORMORANTS",{"$nulls":6},"PHALA",null,"unidentified cormorants - Phalacrocorax spp."]
["PHACA",null,"White-breasted Cormorant Phalacrocorax lucidus",{"$nulls":6},"PHAAF",null,"Reed Cormorant Microcarbo africanus"]
[]
["Total",{"$f":"SUM(B12)","v":0},"DARTER"]
["ANHRU",null,"African Darter Anhinga rufa"]
[]
["Total",{"$f":"SUM(B15:B23,K16:K23,K14)","v":0},"HERONS & EGRETS",{"$nulls":6},"ARDEI",null,"unidentified herons - Ardeidae"]
["ARDCI",null,"Grey Heron Ardea cinerea"]
["ARDME",null,"Black-headed Heron Ardea melanocephala",{"$nulls":6},"BUBIB",null,"Cattle Egret Bubulcus ibis"]
["ARDGO",null,"Goliath Heron Ardea goliath",{"$nulls":6},"ARDRA",null,"Squacco Heron Ardeola ralloides"]
["ARDPU",null,"Purple Heron Ardea purpurea",{"$nulls":6},"ARDRU",null,"Rufous-bellied Heron Ardeola rufiventris"]
["EGRAL",null,"Great Egret Ardea alba",{"$nulls":6},"BUTST",null,"Green-backed Heron Butorides striata"]
["EGRVI",null,"Slaty Egret Egretta vinaceigula",{"$nulls":6},"NYCNY",null,"Black-crowned Night-heron Nycticorax nycticorax"]
["EGRAR",null,"Black Heron Egretta ardesiaca",{"$nulls":6},"NYCLE",null,"White-backed Night-heron Calherodius leuconotus"]
["EGRIN",null,"Yellow-billed Egret Ardea brachyrhyncha",{"$nulls":6},"IXOMI",null,"Little Bittern Ixobrychus minutus"]
["EGRGA",null,"Little Egret Egretta garzetta",{"$nulls":6},"IXOST",null,"Dwarf Bittern Ixobrychus sturmii"]
[]
["Total",{"$f":"SUM(B26:B29,K26:K29)","v":0},"STORKS"]
["MYCIB",null,"Yellow-billed Stork Mycteria ibis",{"$nulls":6},"CICEP",null,"African Woollyneck Ciconia microscelis"]
["ANALA",null,"African Openbill Anastomus lamelligerus",{"$nulls":6},"CICCI",null,"White Stork Ciconia ciconia"]
["CICNI",null,"Black Stork Ciconia nigra",{"$nulls":6},"EPHSE",null,"Saddle-billed Stork Ephippiorhynchus senegalensis"]
["CICAB",null,"Abdim's Stork Ciconia abdimii",{"$nulls":6},"LEPCR",null,"Marabou Stork Leptoptilos crumenifer"]
[]
["Total",{"$f":"SUM(B32:B33,K32:K33)","v":0},"IBISES & SPOONBILL "]
["THRAE",null,"African Sacred Ibis Threskiornis aethiopicus",{"$nulls":6},"PLEFA",null,"Glossy Ibis Plegadis falcinellus"]
["HAGHA",null,"Hadeda Ibis Bostrychia hagedash",{"$nulls":6},"PLAAL",null,"African Spoonbill Platalea alba"]
[]
["Total",{"$f":"SUM(B36)","v":0},"HAMERKOP"]
["SCOUM",null,"Hamerkop Scopus umbretta"]
[]
["Total",{"$f":"SUM(B39,K38:K39)","v":0},"FLAMINGOS",{"$nulls":6},"PHOEN",null,"unidentified flamingos - Phoenicopteridae spp."]
["PHORO",null,"Greater Flamingo Phoenicopterus roseus",{"$nulls":6},"PHOMI",null,"Lesser Flamingo Phoeniconaias minor"]
[]
["Total",{"$f":"SUM(B42,K42)","v":0},"CRANES"]
["BUGCA",null,"Wattled Crane Bugeranus carunculatus",{"$nulls":6},"BALRE",null,"Grey Crowned Crane Balearica regulorum"]
[]
["Total",{"$f":"SUM(B45:B52,K44:K52)","v":0},"DUCKS",{"$nulls":6},"ANATI",null,"unidentified ducks - Anatidae"]
["DENBI",null,"Fulvous Duck Dendrocygna bicolor",{"$nulls":6},"ANASP",null,"African Black Duck Anas sparsa"]
["DENVI",null,"White-faced Duck Dendrocygna viduata",{"$nulls":6},"ANAUN",null,"Yellow-billed Duck Anas undulata"]
["THALE",null,"White-backed Duck Thalassornis leuconotus",{"$nulls":6},"ANAER",null,"Red-billed Teal Anas erythrorhyncha"]
["PLEGA",null,"Spur-winged Goose Plectropterus gambensis",{"$nulls":6},"ANAHO",null,"Hottentot Teal Spatula hottentota"]
["SARME",null,"African Comb Duck Sarkidiornis melanotos",{"$nulls":6},"ANASM",null,"Cape Shoveler Spatula smithii"]
["ALOAE",null,"Egyptian Goose Alopochen aegyptiaca",{"$nulls":6},"ANAQU",null,"Garganey Spatula querquedula"]
["NETAU",null,"African Pygmy-goose Nettapus auritus",{"$nulls":6},"NETER",null,"Southern Pochard Netta erythropthalma"]
["ANACA",null,"Cape Teal Anas capensis",{"$nulls":6},"OXYMA",null,"Maccoa Duck Oxyura maccoa"]
[]
["Total",{"$f":"SUM(B55)","v":0},"FINFOOT"]
["PODSE",null,"African Finfoot Podica senegalensis"]
[]
["Total",{"$f":"SUM(B58,K57:K58)","v":0},"JACANAS",{"$nulls":6},"JACAN",null,"unidentified jacanas - Jacanidae"]
["ACTAF",null,"African Jacana Actophilornis africanus",{"$nulls":6},"MICCA",null,"Lesser Jacana Microparra capensis"]
[]
["Total",{"$f":"SUM(B61:B62,K60:K62)","v":0},"TERNS & SKIMMER",{"$nulls":6},"STERN",null,"unidentified terns - Sternidae"]
["CHLHY",null,"Whiskered Tern Chlidonias hybrida",{"$nulls":6},"STECA",null,"Caspian Tern Hydroprogne caspia"]
["CHLLE",null,"White-winged Tern Chlidonias leucopterus",{"$nulls":6},"RYNFL",null,"African Skimmer Rynchops flavirostris"]
[]
[]
["Total",{"$f":"SUM(B66,K65:K66)","v":0},"GULLS",{"$nulls":6},"LARID",null,"unidentified gulls - Laridae"]
["LARCI",null,"Grey-headed Gull Larus cirrocephalus",{"$nulls":6},"LARFU",null,"Lesser Black-backed Gull Larus fuscus"]
[]
["Total",{"$f":"SUM(B69:B76,K68:K76)","v":0},"RAILS, GALLINULES & COOTS",{"$nulls":6},"RALLI",null,"unidentified rallids - Rallidae"]
["RALCA",null,"African Rail Rallus caerulescens",{"$nulls":6},"PORMG",null,"Striped Crake Aenigmatolimnas marginalis"]
["COTRU",null,"Red-chested Flufftail Sarothrura rufa",{"$nulls":6},"PORPU",null,"Baillon’s Crake Porzana pusilla"]
["COTBO",null,"Streaky-breasted Flufftail Sarothrura boehmi",{"$nulls":6},"PORPZ",null,"Spotted Crake Porzana porzana"]
["COTAF",null,"Striped Flufftail Sarothrura affinis",{"$nulls":6},"GALCH",null,"Common Moorhen Gallinula chloropus"]
["COTEL",null,"Buff-spotted Flufftail Sarothrura elegans",{"$nulls":6},"GALAN",null,"Lesser Moorhen Gallinula angulata"]
["CRECR",null,"Corn Crake Crex crex",{"$nulls":6},"GALAL",null,"Allen’s Gallinule Porphyrio alleni"]
["POREG",null,"African Crake Crecopsis egregia",{"$nulls":6},"PORPO",null,"African Purple Swamphen P. madagascariensis"]
["PORFL",null,"Black Crake Zapornia flavirostra",{"$nulls":6},"FULCR",null,"Red-knobbed Coot Fulica cristata"]
[]
["Total",{"$f":"SUM(B79:B99,K80:K99,K78)","v":0},"WADERS/SHOREBIRDS",{"$nulls":8},"unidentified waders"]
["ROSBE",null,"Greater Painted-snipe Rostratula benghalensis"]
["HIMHI",null,"Black-winged Stilt Himantopus himantopus",{"$nulls":6},"CHAMA",null,"White-fronted Plover Charadrius marginatus"]
["RECAV",null,"Pied Avocet Recurvirostra avosetta",{"$nulls":6},"CHAPA",null,"Chestnut-banded Plover Charadrius pallidus"]
["BURCA",null,"Spotted Thick-knee Burhinus capensis",{"$nulls":6},"CHAAS",null,"Caspian Plover Charadrius asiaticus"]
["BURVE",null,"Water Thick-knee Burhinus vermiculatus",{"$nulls":6},"LIMLI",null,"Black-tailed Godwit Limosa limosa"]
["CURTE",null,"Temminck’s Courser Cursorius temminckii",{"$nulls":6},"LIMLA",null,"Bar-tailed Godwit Limosa lapponica"]
["RHICI",null,"Three-banded Courser Rhinoptilus cinctus",{"$nulls":6},"NUMPH",null,"Common Whimbrel Numenius phaeopus"]
["RHICH",null,"Bronze-winged Courser Rhinoptilus chalcopterus",{"$nulls":6},"NUMAR",null,"Eurasian Curlew Numenius arquata"]
["GLAPR",null,"Collared Pratincole Glareola pratincola",{"$nulls":6},"TRIST",null,"Marsh Sandpiper Tringa stagnatilis"]
["GLANO",null,"Black-winged Pratincole Glareola nordmanni",{"$nulls":6},"TRINE",null,"Common Greenshank Tringa nebularia"]
["GLANU",null,"Rock Pratincole Glareola nuchalis",{"$nulls":6},"TRIOC",null,"Green Sandpiper Tringa ochropus"]
["VANCR",null,"Long-toed Lapwing Vanellus crassirostris",{"$nulls":6},"TRIGL",null,"Wood Sandpiper Tringa glareola"]
["VANAR",null,"Blacksmith Lapwing Vanellus armatus",{"$nulls":6},"XENCI",null,"Terek Sandpiper Xenus cinerea"]
["VANAL",null,"White-crowned Lapwing Vanellus albiceps",{"$nulls":6},"ACTHY",null,"Common Sandpiper Actitis hypoleucos"]
["VANLU",null,"Senegal Lapwing Vanellus lugubris",{"$nulls":6},"AREIN",null,"Ruddy Turnstone Arenaria interpres"]
["VANCO",null,"Crowned Lapwing Vanellus coronatus",{"$nulls":6},"GALNI",null,"African Snipe Gallinago nigripennis"]
["VANSE",null,"African Wattled Lapwing Vanellus senegallus",{"$nulls":6},"GALMD",null,"Great Snipe Gallinago media"]
["PLUSQ",null,"Grey Plover Pluvialis squatarola",{"$nulls":6},"CALAA",null,"Sanderling Calidris alba"]
["CHAHI",null,"Common Ringed Plover Charadrius hiaticula",{"$nulls":6},"CALMI",null,"Little Stint Calidris minuta"]
["CHAPE",null,"Kittlitz’s Plover Charadrius pecuarius",{"$nulls":6},"CALFE",null,"Curlew Sandpiper Calidris ferruginea"]
["CHATR",null,"Three-banded Plover Charadrius tricollaris",{"$nulls":6},"PHIPU",null,"Ruff Calidris pugnax"]
[]
["Total",{"$f":"SUM(B102:B107,K103:K107,K101)","v":0},"RAPTORS & OWLS",{"$nulls":8},"unidentified raptors"]
["PANHA",null,"Osprey Pandion haliaetus",{"$nulls":6},"CIRAE",null,"Western Marsh-harrier Circus aeruginosus"]
["HALVO",null,"African Fish-eagle Haliaeetus vocifer",{"$nulls":6},"CIRPY",null,"Montagu’s Harrier Circus pygargus"]
["ELACA",null,"Black-shouldered Kite Elanus caeruleus",{"$nulls":6},"CIRMA",null,"Pallid Harrier Circus macrourus"]
[null,null,"Yellow-billed Kite Milvus aegyptius",{"$nulls":6},"ASICA",null,"Marsh Owl Asio capensis"]
["MILMG",null,"Black Kite Milvus migrans",{"$nulls":6},"SCOPE",null,"Pel’s Fishing-owl Scotopelia peli  "]
["CIRRA",null,"African Marsh-harrier Circus ranivorus",{"$nulls":6},"TYTCA",null,"African Grass-owl Tyto capensis"]
[]
["Total",{"$f":"SUM(B110:B117,K109:K117)","v":0},"OTHER SPECIES: ",{"$nulls":8},"Lesser Swamp-warbler A. gracilirostris"]
[null,null,"Pied Kingfisher Ceryle rudis",{"$nulls":8},"African Reed-warbler A. baeticatus"]
[null,null,"Giant Kingfisher Megaceryle maxima",{"$nulls":8},"Little Rush-warbler Bradypterus baboecala"]
[null,null,"Malachite Kingfisher Corythornis cristatus",{"$nulls":8},"Little Bee-eater Merops pusillus"]
[null,null,"Half-collared Kingfisher Alcedo semitorquarta",{"$nulls":8},"White-fronted Bee-eater Merops bullockoides"]
[null,null,"African Pied Wagtail Motacilla aguimp",{"$nulls":8},"Southern Carmine Bee-eater M. nubicoides"]
[null,null,"Cape Wagtail Motacilla capensis",{"$nulls":8},"Cape Longclaw Macronyx capensis"]
[null,null,"Mountain Wagtail Motacilla clara",{"$nulls":8},"Yellow-throated Longclaw Macronyx croceus"]
[null,null,"Great Reed-warbler Acrocephalus arundinaceus",{"$nulls":8},"Rosy-throated Longclaw Macronyx ameliae"]
[]
["Post to: Secretary, 5 Leeds Close, Newlands, Harare",{"$nulls":9},{"$f":"B123","v":0},"ADDITIONAL SPECIES: use extra sheet if needed"]
[null,"Email to:",null,"gemsaf@mango.zw",{"$nulls":5},"TOTAL",{"$f":"SUM(B1,B5,B8,B11,B14,B25,B31,B35,B38,B41,B44,B54,B57,B60,B65,B68,B78,B101,B109,K119)","v":0},"Birds of",null,{"$f":"COUNTA(B2:B3,K2,B6,K6,B9,K9,B12,B15:B23,K16:K23,B26:B29,K26:K29,B32:B33,K32:K33,B36,B39,K39,B42,K42,B45:B52,K45:K52,B55,B58,K58,B61:B62,K61:K62,B66,K66,B69:B76,K69:K76,B79:B99,K80:K99,B102:B107,K102:K107,B110:B117,K109:K117,B124:B153)","v":0},"species"]
["Please return this form to your AfWC Secretary ONLY"]
[]
["Total",{"$f":"SUM(B124:B153)","v":0},"ADDITIONAL SPECIES: WETLANDS BIRDS, CISTICOLAS, BISHOPS, ETC."]

{"sheet":"Sheet1","index":2,"n_rows":6,"n_cols":3,"rows_kept":6,"hidden":true}
["WEATHER","COVERAGE","WATER"]
["U","B","U"]
["N","M","N"]
["L","G","D"]
["M","E","O"]
["S","Unknown"]

{"sheet":"Sheet2","index":3,"n_rows":245,"n_cols":15,"rows_kept":245,"hidden":true}
["No.","Bird","Note",{"$nulls":4},"Coverage","Quality","Method","Water","ice","tidal","Weather","Disturbed"]
[{"$f":"'species count'!B2","v":0},{"$f":"'species count'!C2","v":"Little Grebe Tachybaptus ruficollis"},{"$f":"'species count'!I2","v":0},{"$nulls":4},{"$f":"cover!D28","v":0},null,{"$f":"cover!D22","v":0},{"$f":"cover!I26","v":0},null,null,{"$f":"cover!D30","v":0},{"$f":"cover!J31","v":0}]
[{"$f":"'species count'!B3","v":0},{"$f":"'species count'!C3","v":"Black-necked Grebe Podiceps nigricollis"},{"$f":"'species count'!I3","v":0}]
[{"$f":"'species count'!B4","v":0},{"$f":"'species count'!C4","v":0},{"$f":"'species count'!I4","v":0}]
[{"$f":"'species count'!B6","v":0},{"$f":"'species count'!C6","v":"Great White Pelican Pelecanus onocrotalus"},{"$f":"'species count'!I6","v":0}]
[{"$f":"'species count'!B7","v":0},{"$f":"'species count'!C7","v":0},{"$f":"'species count'!I7","v":0},{"$nulls":4},"No.","Bird","Note"]
[{"$f":"'species count'!B9","v":0},{"$f":"'species count'!C9","v":"White-breasted Cormorant Phalacrocorax lucidus"},{"$f":"'species count'!I9","v":0},{"$nulls":3},1,0]
[{"$f":"'species count'!B10","v":0},{"$f":"'species count'!C10","v":0},{"$f":"'species count'!I10","v":0},{"$nulls":3},2,"Grand Total"]
[{"$f":"'species count'!B12","v":0},{"$f":"'species count'!C12","v":"African Darter Anhinga rufa"},{"$f":"'species count'!I12","v":0},{"$nulls":3},3]
[{"$f":"'species count'!B13","v":0},{"$f":"'species count'!C13","v":0},{"$f":"'species count'!I13","v":0},{"$nulls":3},4]
[{"$f":"'species count'!B15","v":0},{"$f":"'species count'!C15","v":"Grey Heron Ardea cinerea"},{"$f":"'species count'!I15","v":0},{"$nulls":3},5]
[{"$f":"'species count'!B16","v":0},{"$f":"'species count'!C16","v":"Black-headed Heron Ardea melanocephala"},{"$f":"'species count'!I16","v":0},{"$nulls":3},6]
[{"$f":"'species count'!B17","v":0},{"$f":"'species count'!C17","v":"Goliath Heron Ardea goliath"},{"$f":"'species count'!I17","v":0},{"$nulls":3},7]
[{"$f":"'species count'!B18","v":0},{"$f":"'species count'!C18","v":"Purple Heron Ardea purpurea"},{"$f":"'species count'!I18","v":0},{"$nulls":3},8]
[{"$f":"'species count'!B19","v":0},{"$f":"'species count'!C19","v":"Great Egret Ardea alba"},{"$f":"'species count'!I19","v":0},{"$nulls":3},9]
[{"$f":"'species count'!B20","v":0},{"$f":"'species count'!C20","v":"Slaty Egret Egretta vinaceigula"},{"$f":"'species count'!I20","v":0},{"$nulls":3},10]
[{"$f":"'species count'!B21","v":0},{"$f":"'species count'!C21","v":"Black Heron Egretta ardesiaca"},{"$f":"'species count'!I21","v":0},{"$nulls":3},11]
[{"$f":"'species count'!B22","v":0},{"$f":"'species count'!C22","v":"Yellow-billed Egret Ardea brachyrhyncha"},{"$f":"'species count'!I22","v":0},{"$nulls":3},12]
[{"$f":"'species count'!B23","v":0},{"$f":"'species count'!C23","v":"Little Egret Egretta garzetta"},{"$f":"'species count'!I23","v":0},{"$nulls":3},13]
[{"$f":"'species count'!B24","v":0},{"$f":"'species count'!C24","v":0},{"$f":"'species count'!I24","v":0},{"$nulls":3},14]
[{"$f":"'species count'!B26","v":0},{"$f":"'species count'!C26","v":"Yellow-billed Stork Mycteria ibis"},{"$f":"'species count'!I26","v":0},{"$nulls":3},15]
[{"$f":"'species count'!B27","v":0},{"$f":"'species count'!C27","v":"African Openbill Anastomus lamelligerus"},{"$f":"'species count'!I27","v":0},{"$nulls":3},16]
[{"$f":"'species count'!B28","v":0},{"$f":"'species count'!C28","v":"Black Stork Ciconia nigra"},{"$f":"'species count'!I28","v":0},{"$nulls":3},17]
[{"$f":"'species count'!B29","v":0},{"$f":"'species count'!C29","v":"Abdim's Stork Ciconia abdimii"},{"$f":"'species count'!I29","v":0},{"$nulls":3},18]
[{"$f":"'species count'!B30","v":0},{"$f":"'species count'!C30","v":0},{"$f":"'species count'!I30","v":0},{"$nulls":3},19]
[{"$f":"'species count'!B32","v":0},{"$f":"'species count'!C32","v":"African Sacred Ibis Threskiornis aethiopicus"},{"$f":"'species count'!I32","v":0},{"$nulls":3},20]
[{"$f":"'species count'!B33","v":0},{"$f":"'species count'!C33","v":"Hadeda Ibis Bostrychia hagedash"},{"$f":"'species count'!I33","v":0},{"$nulls":3},21]
[{"$f":"'species count'!B34","v":0},{"$f":"'species count'!C34","v":0},{"$f":"'species count'!I34","v":0},{"$nulls":3},22]
[{"$f":"'species count'!B36","v":0},{"$f":"'species count'!C36","v":"Hamerkop Scopus umbretta"},{"$f":"'species count'!I36","v":0},{"$nulls":3},23]
[{"$f":"'species count'!B37","v":0},{"$f":"'species count'!C37","v":0},{"$f":"'species count'!I37","v":0},{"$nulls":3},24]
[{"$f":"'species count'!B39","v":0},{"$f":"'species count'!C39","v":"Greater Flamingo Phoenicopterus roseus"},{"$f":"'species count'!I39","v":0},{"$nulls":3},25]
[{"$f":"'species count'!B40","v":0},{"$f":"'species count'!C40","v":0},{"$f":"'species count'!I40","v":0},{"$nulls":3},26]
[{"$f":"'species count'!B42","v":0},{"$f":"'species count'!C42","v":"Wattled Crane Bugeranus carunculatus"},{"$f":"'species count'!I42","v":0},{"$nulls":3},27]
[{"$f":"'species count'!B43","v":0},{"$f":"'species count'!C43","v":0},{"$f":"'species count'!I43","v":0},{"$nulls":3},28]
[{"$f":"'species count'!B45","v":0},{"$f":"'species count'!C45","v":"Fulvous Duck Dendrocygna bicolor"},{"$f":"'species count'!I45","v":0},{"$nulls":3},29]
[{"$f":"'species count'!B46","v":0},{"$f":"'species count'!C46","v":"White-faced Duck Dendrocygna viduata"},{"$f":"'species count'!I46","v":0},{"$nulls":3},30]
[{"$f":"'species count'!B47","v":0},{"$f":"'species count'!C47","v":"White-backed Duck Thalassornis leuconotus"},{"$f":"'species count'!I47","v":0},{"$nulls":3},31]
[{"$f":"'species count'!B48","v":0},{"$f":"'species count'!C48","v":"Spur-winged Goose Plectropterus gambensis"},{"$f":"'species count'!I48","v":0},{"$nulls":3},32]
[{"$f":"'species count'!B49","v":0},{"$f":"'species count'!C49","v":"African Comb Duck Sarkidiornis melanotos"},{"$f":"'species count'!I49","v":0},{"$nulls":3},33]
[{"$f":"'species count'!B50","v":0},{"$f":"'species count'!C50","v":"Egyptian Goose Alopochen aegyptiaca"},{"$f":"'species count'!I50","v":0},{"$nulls":3},34]
[{"$f":"'species count'!B51","v":0},{"$f":"'species count'!C51","v":"African Pygmy-goose Nettapus auritus"},{"$f":"'species count'!I51","v":0},{"$nulls":3},35]
[{"$f":"'species count'!B52","v":0},{"$f":"'species count'!C52","v":"Cape Teal Anas capensis"},{"$f":"'species count'!I52","v":0},{"$nulls":3},36]
[{"$f":"'species count'!B53","v":0},{"$f":"'species count'!C53","v":0},{"$f":"'species count'!I53","v":0},{"$nulls":3},37]
[{"$f":"'species count'!B55","v":0},{"$f":"'species count'!C55","v":"African Finfoot Podica senegalensis"},{"$f":"'species count'!I55","v":0},{"$nulls":3},38]
[{"$f":"'species count'!B56","v":0},{"$f":"'species count'!C56","v":0},{"$f":"'species count'!I56","v":0},{"$nulls":3},39]
[{"$f":"'species count'!B58","v":0},{"$f":"'species count'!C58","v":"African Jacana Actophilornis africanus"},{"$f":"'species count'!I58","v":0},{"$nulls":3},40]
[{"$f":"'species count'!B59","v":0},{"$f":"'species count'!C59","v":0},{"$f":"'species count'!I59","v":0},{"$nulls":3},41]
[{"$f":"'species count'!B61","v":0},{"$f":"'species count'!C61","v":"Whiskered Tern Chlidonias hybrida"},{"$f":"'species count'!I61","v":0},{"$nulls":3},42]
[{"$f":"'species count'!B62","v":0},{"$f":"'species count'!C62","v":"White-winged Tern Chlidonias leucopterus"},{"$f":"'species count'!I62","v":0},{"$nulls":3},43]
[{"$f":"'species count'!B63","v":0},{"$f":"'species count'!C63","v":0},{"$f":"'species count'!I63","v":0},{"$nulls":3},44]
[{"$f":"'species count'!B64","v":0},{"$f":"'species count'!C64","v":0},{"$f":"'species count'!I64","v":0},{"$nulls":3},45]
[{"$f":"'species count'!B66","v":0},{"$f":"'species count'!C66","v":"Grey-headed Gull Larus cirrocephalus"},{"$f":"'species count'!I66","v":0},{"$nulls":3},46]
[{"$f":"'species count'!B67","v":0},{"$f":"'species count'!C67","v":0},{"$f":"'species count'!I67","v":0},{"$nulls":3},47]
[{"$f":"'species count'!B69","v":0},{"$f":"'species count'!C69","v":"African Rail Rallus caerulescens"},{"$f":"'species count'!I69","v":0},{"$nulls":3},48]
[{"$f":"'species count'!B70","v":0},{"$f":"'species count'!C70","v":"Red-chested Flufftail Sarothrura rufa"},{"$f":"'species count'!I70","v":0},{"$nulls":3},49]
[{"$f":"'species count'!B71","v":0},{"$f":"'species count'!C71","v":"Streaky-breasted Flufftail Sarothrura boehmi"},{"$f":"'species count'!I71","v":0},{"$nulls":3},50]
[{"$f":"'species count'!B72","v":0},{"$f":"'species count'!C72","v":"Striped Flufftail Sarothrura affinis"},{"$f":"'species count'!I72","v":0},{"$nulls":3},51]
[{"$f":"'species count'!B73","v":0},{"$f":"'species count'!C73","v":"Buff-spotted Flufftail Sarothrura elegans"},{"$f":"'species count'!I73","v":0},{"$nulls":3},52]
[{"$f":"'species count'!B74","v":0},{"$f":"'species count'!C74","v":"Corn Crake Crex crex"},{"$f":"'species count'!I74","v":0},{"$nulls":3},53]
[{"$f":"'species count'!B75","v":0},{"$f":"'species count'!C75","v":"African Crake Crecopsis egregia"},{"$f":"'species count'!I75","v":0},{"$nulls":3},54]
[{"$f":"'species count'!B76","v":0},{"$f":"'species count'!C76","v":"Black Crake Zapornia flavirostra"},{"$f":"'species count'!I76","v":0},{"$nulls":3},55]
[{"$f":"'species count'!B77","v":0},{"$f":"'species count'!C77","v":0},{"$f":"'species count'!I77","v":0},{"$nulls":3},56]
[{"$f":"'species count'!B79","v":0},{"$f":"'species count'!C79","v":"Greater Painted-snipe Rostratula benghalensis"},{"$f":"'species count'!I79","v":0},{"$nulls":3},57]
[{"$f":"'species count'!B80","v":0},{"$f":"'species count'!C80","v":"Black-winged Stilt Himantopus himantopus"},{"$f":"'species count'!I80","v":0},{"$nulls":3},58]
[{"$f":"'species count'!B81","v":0},{"$f":"'species count'!C81","v":"Pied Avocet Recurvirostra avosetta"},{"$f":"'species count'!I81","v":0},{"$nulls":3},59]
[{"$f":"'species count'!B82","v":0},{"$f":"'species count'!C82","v":"Spotted Thick-knee Burhinus capensis"},{"$f":"'species count'!I82","v":0},{"$nulls":3},60]
[{"$f":"'species count'!B83","v":0},{"$f":"'species count'!C83","v":"Water Thick-knee Burhinus vermiculatus"},{"$f":"'species count'!I83","v":0},{"$nulls":3},61]
[{"$f":"'species count'!B84","v":0},{"$f":"'species count'!C84","v":"Temminck’s Courser Cursorius temminckii"},{"$f":"'species count'!I84","v":0},{"$nulls":3},62]
[{"$f":"'species count'!B85","v":0},{"$f":"'species count'!C85","v":"Three-banded Courser Rhinoptilus cinctus"},{"$f":"'species count'!I85","v":0},{"$nulls":3},63]
[{"$f":"'species count'!B86","v":0},{"$f":"'species count'!C86","v":"Bronze-winged Courser Rhinoptilus chalcopterus"},{"$f":"'species count'!I86","v":0},{"$nulls":3},64]
[{"$f":"'species count'!B87","v":0},{"$f":"'species count'!C87","v":"Collared Pratincole Glareola pratincola"},{"$f":"'species count'!I87","v":0},{"$nulls":3},65]
[{"$f":"'species count'!B88","v":0},{"$f":"'species count'!C88","v":"Black-winged Pratincole Glareola nordmanni"},{"$f":"'species count'!I88","v":0},{"$nulls":3},66]
[{"$f":"'species count'!B89","v":0},{"$f":"'species count'!C89","v":"Rock Pratincole Glareola nuchalis"},{"$f":"'species count'!I89","v":0},{"$nulls":3},67]
[{"$f":"'species count'!B90","v":0},{"$f":"'species count'!C90","v":"Long-toed Lapwing Vanellus crassirostris"},{"$f":"'species count'!I90","v":0},{"$nulls":3},68]
[{"$f":"'species count'!B91","v":0},{"$f":"'species count'!C91","v":"Blacksmith Lapwing Vanellus armatus"},{"$f":"'species count'!I91","v":0},{"$nulls":3},69]
[{"$f":"'species count'!B92","v":0},{"$f":"'species count'!C92","v":"White-crowned Lapwing Vanellus albiceps"},{"$f":"'species count'!I92","v":0},{"$nulls":3},70]
[{"$f":"'species count'!B93","v":0},{"$f":"'species count'!C93","v":"Senegal Lapwing Vanellus lugubris"},{"$f":"'species count'!I93","v":0},{"$nulls":3},71]
[{"$f":"'species count'!B94","v":0},{"$f":"'species count'!C94","v":"Crowned Lapwing Vanellus coronatus"},{"$f":"'species count'!I94","v":0},{"$nulls":3},72]
[{"$f":"'species count'!B95","v":0},{"$f":"'species count'!C95","v":"African Wattled Lapwing Vanellus senegallus"},{"$f":"'species count'!I95","v":0},{"$nulls":3},73]
[{"$f":"'species count'!B96","v":0},{"$f":"'species count'!C96","v":"Grey Plover Pluvialis squatarola"},{"$f":"'species count'!I96","v":0},{"$nulls":3},74]
[{"$f":"'species count'!B97","v":0},{"$f":"'species count'!C97","v":"Common Ringed Plover Charadrius hiaticula"},{"$f":"'species count'!I97","v":0},{"$nulls":3},75]
[{"$f":"'species count'!B98","v":0},{"$f":"'species count'!C98","v":"Kittlitz’s Plover Charadrius pecuarius"},{"$f":"'species count'!I98","v":0},{"$nulls":3},76]
[{"$f":"'species count'!B99","v":0},{"$f":"'species count'!C99","v":"Three-banded Plover Charadrius tricollaris"},{"$f":"'species count'!I99","v":0},{"$nulls":3},77]
[{"$f":"'species count'!B100","v":0},{"$f":"'species count'!C100","v":0},{"$f":"'species count'!I100","v":0},{"$nulls":3},78]
[{"$f":"'species count'!B102","v":0},{"$f":"'species count'!C102","v":"Osprey Pandion haliaetus"},{"$f":"'species count'!I102","v":0},{"$nulls":3},79]
[{"$f":"'species count'!B103","v":0},{"$f":"'species count'!C103","v":"African Fish-eagle Haliaeetus vocifer"},{"$f":"'species count'!I103","v":0},{"$nulls":3},80]
[{"$f":"'species count'!B104","v":0},{"$f":"'species count'!C104","v":"Black-shouldered Kite Elanus caeruleus"},{"$f":"'species count'!I104","v":0},{"$nulls":3},81]
[{"$f":"'species count'!B105","v":0},{"$f":"'species count'!C105","v":"Yellow-billed Kite Milvus aegyptius"},{"$f":"'species count'!I105","v":0},{"$nulls":3},82]
[{"$f":"'species count'!B106","v":0},{"$f":"'species count'!C106","v":"Black Kite Milvus migrans"},{"$f":"'species count'!I106","v":0},{"$nulls":3},83]
[{"$f":"'species count'!B107","v":0},{"$f":"'species count'!C107","v":"African Marsh-harrier Circus ranivorus"},{"$f":"'species count'!I107","v":0},{"$nulls":3},84]
[{"$f":"'species count'!B108","v":0},{"$f":"'species count'!C108","v":0},{"$f":"'species count'!I108","v":0},{"$nulls":3},85]
[{"$f":"'species count'!B110","v":0},{"$f":"'species count'!C110","v":"Pied Kingfisher Ceryle rudis"},{"$f":"'species count'!I110","v":0},{"$nulls":3},86]
[{"$f":"'species count'!B111","v":0},{"$f":"'species count'!C111","v":"Giant Kingfisher Megaceryle maxima"},{"$f":"'species count'!I111","v":0},{"$nulls":3},87]
[{"$f":"'species count'!B112","v":0},{"$f":"'species count'!C112","v":"Malachite Kingfisher Corythornis cristatus"},{"$f":"'species count'!I112","v":0},{"$nulls":3},88]
[{"$f":"'species count'!B113","v":0},{"$f":"'species count'!C113","v":"Half-collared Kingfisher Alcedo semitorquarta"},{"$f":"'species count'!I113","v":0},{"$nulls":3},89]
[{"$f":"'species count'!B114","v":0},{"$f":"'species count'!C114","v":"African Pied Wagtail Motacilla aguimp"},{"$f":"'species count'!I114","v":0},{"$nulls":3},90]
[{"$f":"'species count'!B115","v":0},{"$f":"'species count'!C115","v":"Cape Wagtail Motacilla capensis"},{"$f":"'species count'!I115","v":0},{"$nulls":3},91]
[{"$f":"'species count'!B116","v":0},{"$f":"'species count'!C116","v":"Mountain Wagtail Motacilla clara"},{"$f":"'species count'!I116","v":0},{"$nulls":3},92]
[{"$f":"'species count'!B117","v":0},{"$f":"'species count'!C117","v":"Great Reed-warbler Acrocephalus arundinaceus"},{"$f":"'species count'!I117","v":0},{"$nulls":3},93]
[{"$f":"'species count'!K2","v":0},{"$f":"'species count'!L2","v":"Great Crested Grebe Podiceps cristatus"},{"$f":"'species count'!R2","v":0},{"$nulls":3},94]
[{"$f":"'species count'!K3","v":0},{"$f":"'species count'!L3","v":0},{"$f":"'species count'!R3","v":0},{"$nulls":3},95]
[{"$f":"'species count'!K4","v":0},{"$f":"'species count'!L4","v":0},{"$f":"'species count'!R4","v":0}]
[{"$f":"'species count'!K5","v":0},{"$f":"'species count'!L5","v":"unidentified pelicans - Pelecanus spp."},{"$f":"'species count'!R5","v":0}]
[{"$f":"'species count'!K6","v":0},{"$f":"'species count'!L6","v":"Pink-backed Pelican Pelecanus rufescens"},{"$f":"'species count'!R6","v":0}]
[{"$f":"'species count'!K7","v":0},{"$f":"'species count'!L7","v":0},{"$f":"'species count'!R7","v":0}]
[{"$f":"'species count'!K8","v":0},{"$f":"'species count'!L8","v":"unidentified cormorants - Phalacrocorax spp."},{"$f":"'species count'!R8","v":0}]
[{"$f":"'species count'!K9","v":0},{"$f":"'species count'!L9","v":"Reed Cormorant Microcarbo africanus"},{"$f":"'species count'!R9","v":0}]
[{"$f":"'species count'!K10","v":0},{"$f":"'species count'!L10","v":0},{"$f":"'species count'!R10","v":0}]
[{"$f":"'species count'!K11","v":0},{"$f":"'species count'!L11","v":0},{"$f":"'species count'!R11","v":0}]
[{"$f":"'species count'!K12","v":0},{"$f":"'species count'!L12","v":0},{"$f":"'species count'!R12","v":0}]
[{"$f":"'species count'!K13","v":0},{"$f":"'species count'!L13","v":0},{"$f":"'species count'!R13","v":0}]
[{"$f":"'species count'!K14","v":0},{"$f":"'species count'!L14","v":"unidentified herons - Ardeidae"},{"$f":"'species count'!R14","v":0}]
[{"$f":"'species count'!K15","v":0},{"$f":"'species count'!L15","v":0},{"$f":"'species count'!R15","v":0}]
[{"$f":"'species count'!K16","v":0},{"$f":"'species count'!L16","v":"Cattle Egret Bubulcus ibis"},{"$f":"'species count'!R16","v":0}]
[{"$f":"'species count'!K17","v":0},{"$f":"'species count'!L17","v":"Squacco Heron Ardeola ralloides"},{"$f":"'species count'!R17","v":0}]
[{"$f":"'species count'!K18","v":0},{"$f":"'species count'!L18","v":"Rufous-bellied Heron Ardeola rufiventris"},{"$f":"'species count'!R18","v":0}]
[{"$f":"'species count'!K19","v":0},{"$f":"'species count'!L19","v":"Green-backed Heron Butorides striata"},{"$f":"'species count'!R19","v":0}]
[{"$f":"'species count'!K20","v":0},{"$f":"'species count'!L20","v":"Black-crowned Night-heron Nycticorax nycticorax"},{"$f":"'species count'!R20","v":0}]
[{"$f":"'species count'!K21","v":0},{"$f":"'species count'!L21","v":"White-backed Night-heron Calherodius leuconotus"},{"$f":"'species count'!R21","v":0}]
[{"$f":"'species count'!K22","v":0},{"$f":"'species count'!L22","v":"Little Bittern Ixobrychus minutus"},{"$f":"'species count'!R22","v":0}]
[{"$f":"'species count'!K23","v":0},{"$f":"'species count'!L23","v":"Dwarf Bittern Ixobrychus sturmii"},{"$f":"'species count'!R23","v":0}]
[{"$f":"'species count'!K24","v":0},{"$f":"'species count'!L24","v":0},{"$f":"'species count'!R24","v":0}]
[{"$f":"'species count'!K25","v":0},{"$f":"'species count'!L25","v":0},{"$f":"'species count'!R25","v":0}]
[{"$f":"'species count'!K26","v":0},{"$f":"'species count'!L26","v":"African Woollyneck Ciconia microscelis"},{"$f":"'species count'!R26","v":0}]
[{"$f":"'species count'!K27","v":0},{"$f":"'species count'!L27","v":"White Stork Ciconia ciconia"},{"$f":"'species count'!R27","v":0}]
[{"$f":"'species count'!K28","v":0},{"$f":"'species count'!L28","v":"Saddle-billed Stork Ephippiorhynchus senegalensis"},{"$f":"'species count'!R28","v":0}]
[{"$f":"'species count'!K29","v":0},{"$f":"'species count'!L29","v":"Marabou Stork Leptoptilos crumenifer"},{"$f":"'species count'!R29","v":0}]
[{"$f":"'species count'!K30","v":0},{"$f":"'species count'!L30","v":0},{"$f":"'species count'!R30","v":0}]
[{"$f":"'species count'!K31","v":0},{"$f":"'species count'!L31","v":0},{"$f":"'species count'!R31","v":0}]
[{"$f":"'species count'!K32","v":0},{"$f":"'species count'!L32","v":"Glossy Ibis Plegadis falcinellus"},{"$f":"'species count'!R32","v":0}]
[{"$f":"'species count'!K33","v":0},{"$f":"'species count'!L33","v":"African Spoonbill Platalea alba"},{"$f":"'species count'!R33","v":0}]
[{"$f":"'species count'!K34","v":0},{"$f":"'species count'!L34","v":0},{"$f":"'species count'!R34","v":0}]
[{"$f":"'species count'!K35","v":0},{"$f":"'species count'!L35","v":0},{"$f":"'species count'!R35","v":0}]
[{"$f":"'species count'!K36","v":0},{"$f":"'species count'!L36","v":0},{"$f":"'species count'!R36","v":0}]
[{"$f":"'species count'!K37","v":0},{"$f":"'species count'!L37","v":0},{"$f":"'species count'!R37","v":0}]
[{"$f":"'species count'!K38","v":0},{"$f":"'species count'!L38","v":"unidentified flamingos - Phoenicopteridae spp."},{"$f":"'species count'!R38","v":0}]
[{"$f":"'species count'!K39","v":0},{"$f":"'species count'!L39","v":"Lesser Flamingo Phoeniconaias minor"},{"$f":"'species count'!R39","v":0}]
[{"$f":"'species count'!K40","v":0},{"$f":"'species count'!L40","v":0},{"$f":"'species count'!R40","v":0}]
[{"$f":"'species count'!K41","v":0},{"$f":"'species count'!L41","v":0},{"$f":"'species count'!R41","v":0}]
[{"$f":"'species count'!K42","v":0},{"$f":"'species count'!L42","v":"Grey Crowned Crane Balearica regulorum"},{"$f":"'species count'!R42","v":0}]
[{"$f":"'species count'!K43","v":0},{"$f":"'species count'!L43","v":0},{"$f":"'species count'!R43","v":0}]
[{"$f":"'species count'!K44","v":0},{"$f":"'species count'!L44","v":"unidentified ducks - Anatidae"},{"$f":"'species count'!R44","v":0}]
[{"$f":"'species count'!K45","v":0},{"$f":"'species count'!L45","v":"African Black Duck Anas sparsa"},{"$f":"'species count'!R45","v":0}]
[{"$f":"'species count'!K46","v":0},{"$f":"'species count'!L46","v":"Yellow-billed Duck Anas undulata"},{"$f":"'species count'!R46","v":0}]
[{"$f":"'species count'!K47","v":0},{"$f":"'species count'!L47","v":"Red-billed Teal Anas erythrorhyncha"},{"$f":"'species count'!R47","v":0}]
[{"$f":"'species count'!K48","v":0},{"$f":"'species count'!L48","v":"Hottentot Teal Spatula hottentota"},{"$f":"'species count'!R48","v":0}]
[{"$f":"'species count'!K49","v":0},{"$f":"'species count'!L49","v":"Cape Shoveler Spatula smithii"},{"$f":"'species count'!R49","v":0}]
[{"$f":"'species count'!K50","v":0},{"$f":"'species count'!L50","v":"Garganey Spatula querquedula"},{"$f":"'species count'!R50","v":0}]
[{"$f":"'species count'!K51","v":0},{"$f":"'species count'!L51","v":"Southern Pochard Netta erythropthalma"},{"$f":"'species count'!R51","v":0}]
[{"$f":"'species count'!K52","v":0},{"$f":"'species count'!L52","v":"Maccoa Duck Oxyura maccoa"},{"$f":"'species count'!R52","v":0}]
[{"$f":"'species count'!K53","v":0},{"$f":"'species count'!L53","v":0},{"$f":"'species count'!R53","v":0}]
[{"$f":"'species count'!K54","v":0},{"$f":"'species count'!L54","v":0},{"$f":"'species count'!R54","v":0}]
[{"$f":"'species count'!K55","v":0},{"$f":"'species count'!L55","v":0},{"$f":"'species count'!R55","v":0}]
[{"$f":"'species count'!K56","v":0},{"$f":"'species count'!L56","v":0},{"$f":"'species count'!R56","v":0}]
[{"$f":"'species count'!K57","v":0},{"$f":"'species count'!L57","v":"unidentified jacanas - Jacanidae"},{"$f":"'species count'!R57","v":0}]
[{"$f":"'species count'!K58","v":0},{"$f":"'species count'!L58","v":"Lesser Jacana Microparra capensis"},{"$f":"'species count'!R58","v":0}]
[{"$f":"'species count'!K59","v":0},{"$f":"'species count'!L59","v":0},{"$f":"'species count'!R59","v":0}]
[{"$f":"'species count'!K60","v":0},{"$f":"'species count'!L60","v":"unidentified terns - Sternidae"},{"$f":"'species count'!R60","v":0}]
[{"$f":"'species count'!K61","v":0},{"$f":"'species count'!L61","v":"Caspian Tern Hydroprogne caspia"},{"$f":"'species count'!R61","v":0}]
[{"$f":"'species count'!K62","v":0},{"$f":"'species count'!L62","v":"African Skimmer Rynchops flavirostris"},{"$f":"'species count'!R62","v":0}]
[{"$f":"'species count'!K63","v":0},{"$f":"'species count'!L63","v":0},{"$f":"'species count'!R63","v":0}]
[{"$f":"'species count'!K64","v":0},{"$f":"'species count'!L64","v":0},{"$f":"'species count'!R64","v":0}]
[{"$f":"'species count'!K65","v":0},{"$f":"'species count'!L65","v":"unidentified gulls - Laridae"},{"$f":"'species count'!R65","v":0}]
[{"$f":"'species count'!K66","v":0},{"$f":"'species count'!L66","v":"Lesser Black-backed Gull Larus fuscus"},{"$f":"'species count'!R66","v":0}]
[{"$f":"'species count'!K67","v":0},{"$f":"'species count'!L67","v":0},{"$f":"'species count'!R67","v":0}]
[{"$f":"'species count'!K68","v":0},{"$f":"'species count'!L68","v":"unidentified rallids - Rallidae"},{"$f":"'species count'!R68","v":0}]
[{"$f":"'species count'!K69","v":0},{"$f":"'species count'!L69","v":"Striped Crake Aenigmatolimnas marginalis"},{"$f":"'species count'!R69","v":0}]
[{"$f":"'species count'!K70","v":0},{"$f":"'species count'!L70","v":"Baillon’s Crake Porzana pusilla"},{"$f":"'species count'!R70","v":0}]
[{"$f":"'species count'!K71","v":0},{"$f":"'species count'!L71","v":"Spotted Crake Porzana porzana"},{"$f":"'species count'!R71","v":0}]
[{"$f":"'species count'!K72","v":0},{"$f":"'species count'!L72","v":"Common Moorhen Gallinula chloropus"},{"$f":"'species count'!R72","v":0}]
[{"$f":"'species count'!K73","v":0},{"$f":"'species count'!L73","v":"Lesser Moorhen Gallinula angulata"},{"$f":"'species count'!R73","v":0}]
[{"$f":"'species count'!K74","v":0},{"$f":"'species count'!L74","v":"Allen’s Gallinule Porphyrio alleni"},{"$f":"'species count'!R74","v":0}]
[{"$f":"'species count'!K75","v":0},{"$f":"'species count'!L75","v":"African Purple Swamphen P. madagascariensis"},{"$f":"'species count'!R75","v":0}]
[{"$f":"'species count'!K76","v":0},{"$f":"'species count'!L76","v":"Red-knobbed Coot Fulica cristata"},{"$f":"'species count'!R76","v":0}]
[{"$f":"'species count'!K77","v":0},{"$f":"'species count'!L77","v":0},{"$f":"'species count'!R77","v":0}]
[{"$f":"'species count'!K78","v":0},{"$f":"'species count'!L78","v":"unidentified waders"},{"$f":"'species count'!R78","v":0}]
[{"$f":"'species count'!K79","v":0},{"$f":"'species count'!L79","v":0},{"$f":"'species count'!R79","v":0}]
[{"$f":"'species count'!K80","v":0},{"$f":"'species count'!L80","v":"White-fronted Plover Charadrius marginatus"},{"$f":"'species count'!R80","v":0}]
[{"$f":"'species count'!K81","v":0},{"$f":"'species count'!L81","v":"Chestnut-banded Plover Charadrius pallidus"},{"$f":"'species count'!R81","v":0}]
[{"$f":"'species count'!K82","v":0},{"$f":"'species count'!L82","v":"Caspian Plover Charadrius asiaticus"},{"$f":"'species count'!R82","v":0}]
[{"$f":"'species count'!K83","v":0},{"$f":"'species count'!L83","v":"Black-tailed Godwit Limosa limosa"},{"$f":"'species count'!R83","v":0}]
[{"$f":"'species count'!K84","v":0},{"$f":"'species count'!L84","v":"Bar-tailed Godwit Limosa lapponica"},{"$f":"'species count'!R84","v":0}]
[{"$f":"'species count'!K85","v":0},{"$f":"'species count'!L85","v":"Common Whimbrel Numenius phaeopus"},{"$f":"'species count'!R85","v":0}]
[{"$f":"'species count'!K86","v":0},{"$f":"'species count'!L86","v":"Eurasian Curlew Numenius arquata"},{"$f":"'species count'!R86","v":0}]
[{"$f":"'species count'!K87","v":0},{"$f":"'species count'!L87","v":"Marsh Sandpiper Tringa stagnatilis"},{"$f":"'species count'!R87","v":0}]
[{"$f":"'species count'!K88","v":0},{"$f":"'species count'!L88","v":"Common Greenshank Tringa nebularia"},{"$f":"'species count'!R88","v":0}]
[{"$f":"'species count'!K89","v":0},{"$f":"'species count'!L89","v":"Green Sandpiper Tringa ochropus"},{"$f":"'species count'!R89","v":0}]
[{"$f":"'species count'!K90","v":0},{"$f":"'species count'!L90","v":"Wood Sandpiper Tringa glareola"},{"$f":"'species count'!R90","v":0}]
[{"$f":"'species count'!K91","v":0},{"$f":"'species count'!L91","v":"Terek Sandpiper Xenus cinerea"},{"$f":"'species count'!R91","v":0}]
[{"$f":"'species count'!K92","v":0},{"$f":"'species count'!L92","v":"Common Sandpiper Actitis hypoleucos"},{"$f":"'species count'!R92","v":0}]
[{"$f":"'species count'!K93","v":0},{"$f":"'species count'!L93","v":"Ruddy Turnstone Arenaria interpres"},{"$f":"'species count'!R93","v":0}]
[{"$f":"'species count'!K94","v":0},{"$f":"'species count'!L94","v":"African Snipe Gallinago nigripennis"},{"$f":"'species count'!R94","v":0}]
[{"$f":"'species count'!K95","v":0},{"$f":"'species count'!L95","v":"Great Snipe Gallinago media"},{"$f":"'species count'!R95","v":0}]
[{"$f":"'species count'!K96","v":0},{"$f":"'species count'!L96","v":"Sanderling Calidris alba"},{"$f":"'species count'!R96","v":0}]
[{"$f":"'species count'!K97","v":0},{"$f":"'species count'!L97","v":"Little Stint Calidris minuta"},{"$f":"'species count'!R97","v":0}]
[{"$f":"'species count'!K98","v":0},{"$f":"'species count'!L98","v":"Curlew Sandpiper Calidris ferruginea"},{"$f":"'species count'!R98","v":0}]
[{"$f":"'species count'!K99","v":0},{"$f":"'species count'!L99","v":"Ruff Calidris pugnax"},{"$f":"'species count'!R99","v":0}]
[{"$f":"'species count'!K100","v":0},{"$f":"'species count'!L100","v":0},{"$f":"'species count'!R100","v":0}]
[{"$f":"'species count'!K101","v":0},{"$f":"'species count'!L101","v":"unidentified raptors"},{"$f":"'species count'!R101","v":0}]
[{"$f":"'species count'!K102","v":0},{"$f":"'species count'!L102","v":"Western Marsh-harrier Circus aeruginosus"},{"$f":"'species count'!R102","v":0}]
[{"$f":"'species count'!K103","v":0},{"$f":"'species count'!L103","v":"Montagu’s Harrier Circus pygargus"},{"$f":"'species count'!R103","v":0}]
[{"$f":"'species count'!K104","v":0},{"$f":"'species count'!L104","v":"Pallid Harrier Circus macrourus"},{"$f":"'species count'!R104","v":0}]
[{"$f":"'species count'!K105","v":0},{"$f":"'species count'!L105","v":"Marsh Owl Asio capensis"},{"$f":"'species count'!R105","v":0}]
[{"$f":"'species count'!K106","v":0},{"$f":"'species count'!L106","v":"Pel’s Fishing-owl Scotopelia peli  "},{"$f":"'species count'!R106","v":0}]
[{"$f":"'species count'!K107","v":0},{"$f":"'species count'!L107","v":"African Grass-owl Tyto capensis"},{"$f":"'species count'!R107","v":0}]
[{"$f":"'species count'!K108","v":0},{"$f":"'species count'!L108","v":0},{"$f":"'species count'!R108","v":0}]
[{"$f":"'species count'!K109","v":0},{"$f":"'species count'!L109","v":"Lesser Swamp-warbler A. gracilirostris"},{"$f":"'species count'!R109","v":0}]
[{"$f":"'species count'!K110","v":0},{"$f":"'species count'!L110","v":"African Reed-warbler A. baeticatus"},{"$f":"'species count'!R110","v":0}]
[{"$f":"'species count'!K111","v":0},{"$f":"'species count'!L111","v":"Little Rush-warbler Bradypterus baboecala"},{"$f":"'species count'!R111","v":0}]
[{"$f":"'species count'!K112","v":0},{"$f":"'species count'!L112","v":"Little Bee-eater Merops pusillus"},{"$f":"'species count'!R112","v":0}]
[{"$f":"'species count'!K113","v":0},{"$f":"'species count'!L113","v":"White-fronted Bee-eater Merops bullockoides"},{"$f":"'species count'!R113","v":0}]
[{"$f":"'species count'!K114","v":0},{"$f":"'species count'!L114","v":"Southern Carmine Bee-eater M. nubicoides"},{"$f":"'species count'!R114","v":0}]
[{"$f":"'species count'!K115","v":0},{"$f":"'species count'!L115","v":"Cape Longclaw Macronyx capensis"},{"$f":"'species count'!R115","v":0}]
[{"$f":"'species count'!K116","v":0},{"$f":"'species count'!L116","v":"Yellow-throated Longclaw Macronyx croceus"},{"$f":"'species count'!R116","v":0}]
[{"$f":"'species count'!K117","v":0},{"$f":"'species count'!L117","v":"Rosy-throated Longclaw Macronyx ameliae"},{"$f":"'species count'!R117","v":0}]
[{"$f":"'species count'!B124","v":0},{"$f":"'species count'!C124","v":0},{"$f":"'species count'!I124","v":0}]
[{"$f":"'species count'!B125","v":0},{"$f":"'species count'!C125","v":0},{"$f":"'species count'!I125","v":0}]
[{"$f":"'species count'!B126","v":0},{"$f":"'species count'!C126","v":0},{"$f":"'species count'!I126","v":0}]
[{"$f":"'species count'!B127","v":0},{"$f":"'species count'!C127","v":0},{"$f":"'species count'!I127","v":0}]
[{"$f":"'species count'!B128","v":0},{"$f":"'species count'!C128","v":0},{"$f":"'species count'!I128","v":0}]
[{"$f":"'species count'!B129","v":0},{"$f":"'species count'!C129","v":0},{"$f":"'species count'!I129","v":0}]
[{"$f":"'species count'!B130","v":0},{"$f":"'species count'!C130","v":0},{"$f":"'species count'!I130","v":0}]
[{"$f":"'species count'!B131","v":0},{"$f":"'species count'!C131","v":0},{"$f":"'species count'!I131","v":0}]
[{"$f":"'species count'!B132","v":0},{"$f":"'species count'!C132","v":0},{"$f":"'species count'!I132","v":0}]
[{"$f":"'species count'!B133","v":0},{"$f":"'species count'!C133","v":0},{"$f":"'species count'!I133","v":0}]
[{"$f":"'species count'!B134","v":0},{"$f":"'species count'!C134","v":0},{"$f":"'species count'!I134","v":0}]
[{"$f":"'species count'!B135","v":0},{"$f":"'species count'!C135","v":0},{"$f":"'species count'!I135","v":0}]
[{"$f":"'species count'!B136","v":0},{"$f":"'species count'!C136","v":0},{"$f":"'species count'!I136","v":0}]
[{"$f":"'species count'!B137","v":0},{"$f":"'species count'!C137","v":0},{"$f":"'species count'!I137","v":0}]
[{"$f":"'species count'!B138","v":0},{"$f":"'species count'!C138","v":0},{"$f":"'species count'!I138","v":0}]
[{"$f":"'species count'!B139","v":0},{"$f":"'species count'!C139","v":0},{"$f":"'species count'!I139","v":0}]
[{"$f":"'species count'!B140","v":0},{"$f":"'species count'!C140","v":0},{"$f":"'species count'!I140","v":0}]
[{"$f":"'species count'!B141","v":0},{"$f":"'species count'!C141","v":0},{"$f":"'species count'!I141","v":0}]
[{"$f":"'species count'!B142","v":0},{"$f":"'species count'!C142","v":0},{"$f":"'species count'!I142","v":0}]
[{"$f":"'species count'!B143","v":0},{"$f":"'species count'!C143","v":0},{"$f":"'species count'!I143","v":0}]
[{"$f":"'species count'!B144","v":0},{"$f":"'species count'!C144","v":0},{"$f":"'species count'!I144","v":0}]
[{"$f":"'species count'!B145","v":0},{"$f":"'species count'!C145","v":0},{"$f":"'species count'!I145","v":0}]
[{"$f":"'species count'!B146","v":0},{"$f":"'species count'!C146","v":0},{"$f":"'species count'!I146","v":0}]
[{"$f":"'species count'!B147","v":0},{"$f":"'species count'!C147","v":0},{"$f":"'species count'!I147","v":0}]
[{"$f":"'species count'!B148","v":0},{"$f":"'species count'!C148","v":0},{"$f":"'species count'!I148","v":0}]
[{"$f":"'species count'!B149","v":0},{"$f":"'species count'!C149","v":0},{"$f":"'species count'!I149","v":0}]
[{"$f":"'species count'!B150","v":0},{"$f":"'species count'!C150","v":0},{"$f":"'species count'!I150","v":0}]
[{"$f":"'species count'!B151","v":0},{"$f":"'species count'!C151","v":0},{"$f":"'species count'!I151","v":0}]
[{"$f":"'species count'!B152","v":0},{"$f":"'species count'!C152","v":0},{"$f":"'species count'!I152","v":0}]
[{"$f":"'species count'!B153","v":0},{"$f":"'species count'!C153","v":0},{"$f":"'species count'!I153","v":0}]